Workbook

Sheet Лист1

Sheet Лист11
I1: X | J1: Y
I2: =B6 -> 700.8150635 | L2: =C6 -> 320.5129852
B4: Координаты точки А
B5: X | C5: Y | F5: A | G5: B | H5: C | I5: =MIN(I$8:I$44) -> 400.8150635 | K5: =$C$15*I5+$C$16 -> 619.2553967
B6: 700.8150635 | C6: 320.5129852 | F6: =1+C15^2 -> 1.991633799 | G6: =-2*((C6-C16)*C15+B6) -> -2791.533889 | H6: =B6^2+(C6-C16)^2-B10^2 -> 888174.4841 | I6: =MAX(I$8:I$44) -> 1000.815063 | K6: =$C$15*I6+$C$16 -> 21.77052867
B7: =B6 -> 700.8150635 | C7: =$C$15*B7+$C$16 -> 320.5129627 | G7: A*X2+BX+C=0
H8: 0 | I8: =COS(PI()/18*$H8)*$B$10+B$6 -> 1000.815063 | J8: =SIN(PI()/18*$H8)*$B$10+C$6 -> 320.5129852
B9: Длина линии: | H9: 1 | I9: =COS(PI()/18*$H9)*$B$10+B$6 -> 996.2573894 | J9: =SIN(PI()/18*$H9)*$B$10+C$6 -> 372.6074385
B10: 300 | H10: 2 | I10: 982.7228497 | J10: 423.1190282
B11: =SQRT((B$6-B26)^2+(C$6-C26)^2) -> 300 | C11: =SQRT((B$6-B28)^2+(C$6-C28)^2) -> 83.83547218 | H11: 3 | I11: 960.6226846 | J11: 470.5129852
B12: =SQRT((B$6-B27)^2+(C$6-C27)^2) -> 300 | C12: =SQRT((B$6-B29)^2+(C$6-C29)^2) -> 294.3686795 | H12: 4 | I12: 930.6283964 | J12: 513.3492681
H13: 5 | I13: 893.6513464 | J13: 550.3263182
B14: Уравнение штриховой красной линии: | H14: 6 | I14: 850.8150635 | J14: 580.3206064
B15: k | C15: -0.9958081133 | H15: 7 | I15: 803.4211065 | J15: 602.4207715
B16: b | C16: 1018.390289 | H16: 8 | I16: 752.9095168 | J16: 615.9553111
H17: 9 | I17: 700.8150635 | J17: 620.5129852
H18: 10 | I18: 648.7206102 | J18: 615.9553111
H19: 11 | I19: 598.2090205 | J19: 602.4207715
B20: y = -0,996*x + 1018 | H20: 12 | I20: 550.8150635 | J20: 580.3206064
H21: 13 | I21: 507.9787806 | J21: 550.3263182
H22: 14 | I22: 471.0017305 | J22: 513.3492681
H23: 15 | I23: 441.0074423 | J23: 470.5129852
B24: Координаты точки B | H24: 16 | I24: 418.9072772 | J24: 423.1190282
B25: X | C25: Y | H25: 17 | I25: 405.3727376 | J25: 372.6074385
A26: =(-G6+SQRT(G6^2-4*F6*H6))/F6/2 -> 913.3921682 | B26: =(2*((C6-C16)*C15+B6)+SQRT((2*((C6-C16)*C15+B6))^2-4*(1+C15^2)*(B6^2+(C6-C16)^2-B10^2)))/(1+C15^2)/2 -> 913.3921682 | C26: =$C$15*B26+$C$16 -> 108.826957 | D26: =(-1^ROW()*SQRT((2*((C$6-C$16)*C$15+B$6))^2-4*(1+C$15^2)*(B$6^2+(C$6-C$16)^2-B$10^2))+2*((C$6-C$16)*C$15+B$6))/(1+C$15^2)/2 -> 913.3921682 | H26: 18 | I26: 400.8150635 | J26: 320.5129852
A27: =(-G6-SQRT(G6^2-4*F6*H6))/F6/2 -> 488.2379362 | B27: =(2*((C6-C16)*C15+B6)-SQRT((2*((C6-C16)*C15+B6))^2-4*(1+C15^2)*(B6^2+(C6-C16)^2-B10^2)))/(1+C15^2)/2 -> 488.2379362 | C27: =$C$15*B27+$C$16 -> 532.1989908 | D27: =(-1^ROW()*SQRT((2*((C$6-C$16)*C$15+B$6))^2-4*(1+C$15^2)*(B$6^2+(C$6-C$16)^2-B$10^2))+2*((C$6-C$16)*C$15+B$6))/(1+C$15^2)/2 -> 488.2379362 | H27: 19 | I27: 405.3727376 | J27: 268.4185319
B28: 760.2200619 | C28: =$C$15*B28+$C$16 -> 261.3569833 | H28: 20 | I28: 418.9072772 | J28: 217.9069422
B29: 492.2282358 | C29: =$C$15*B29+$C$16 -> 528.225418 | H29: 21 | I29: 441.0074423 | J29: 170.5129852
H30: 22 | I30: 471.0017305 | J30: 127.6767023
H31: 23 | I31: 507.9787806 | J31: 90.69965229
H32: 24 | I32: 550.8150635 | J32: 60.70536409
H33: 25 | I33: 598.2090205 | J33: 38.60519899
H34: 26 | I34: 648.7206102 | J34: 25.07065933
H35: 27 | I35: 700.8150635 | J35: 20.51298523
H36: 28 | I36: 752.9095168 | J36: 25.07065933
H37: 29 | I37: 803.4211065 | J37: 38.60519899
H38: 30 | I38: 850.8150635 | J38: 60.70536409
H39: 31 | I39: 893.6513464 | J39: 90.69965229
H40: 32 | I40: 930.6283964 | J40: 127.6767023
H41: 33 | I41: 960.6226846 | J41: 170.5129852
H42: 34 | I42: 982.7228497 | J42: 217.9069422
H43: 35 | I43: 996.2573894 | J43: 268.4185319
H44: 36 | I44: 1000.815063 | J44: 320.5129852

Sheet Лист2

Sheet Лист3

Sheet Лист4
